bitfinex-derivatives/quotes_SOLF0:USTF0_20230103
["timestamp","ask_amount","ask_price","bid_price","bid_amount"]
[1672756814958,0.06096179,12.388,12.379,0.06984899]
[1672756815165,5.06096179,12.388,12.379,0.06984899]
[1672756815580,0.06096179,12.388,12.379,0.06984899]
[1672756816632,5.0,12.386,12.379,0.06984899]
[1672756816847,48.45,12.385,12.356,1798.0]
[1672756817053,5.0,12.384,12.357,5.0]
[1672756817271,5.0,12.384,12.358,1798.0]
[1672756817481,5.0,12.384,12.359,5.0]
[1672756817797,0.06419337,12.376,12.367,0.0682807]
[1672756818006,0.06575567,12.376,12.369,5.0]
[1672756818215,0.06575567,12.376,12.37,1798.0]
[1672756818422,0.06575567,12.376,12.371,5.0]
[1672756818632,0.06575567,12.376,12.37,1798.0]
[1672756818839,0.06575567,12.376,12.371,5.0]
[1672756820420,0.06575567,12.376,12.37,1798.0]
[1672756823153,0.06575567,12.376,12.367,1798.07082371]
[1672756823363,0.06575567,12.376,12.371,5.0]
[1672756824310,1.6,12.375,12.371,5.0]
[1672756824516,1.6,12.375,12.368,5.0]
[1672756827252,0.06575567,12.376,12.368,5.0]
[1672756827881,1.3,12.374,12.368,5.0]
[1672756828616,1.3,12.374,12.367,0.07082371]
[1672756829240,5.0,12.373,12.366,0.04375673]
[1672756829669,1.3,12.374,12.366,0.04375673]
[1672756830194,1.3,12.374,12.366,0.10474362]
[1672756831668,5.0,12.375,12.366,0.10474362]
[1672756832189,1.3,12.374,12.366,0.10474362]
[1672756833974,5.0,12.373,12.358,5.0]
[1672756835030,0.06181664,12.37,12.361,0.06111449]
[1672756835235,0.20960686,12.373,12.361,0.06111449]
[1672756835553,5.0,12.386,12.362,5.0]
[1672756835762,42.00243704,12.386,12.363,46.3856]
[1672756835975,1.8,12.374,12.364,5.0]
[1672756836180,1.8,12.374,12.365,46.3856]
[1672756836391,1.87110411,12.374,12.366,1798.0]
[1672756836606,1.87110411,12.374,12.367,46.3856]
[1672756837131,1.87110411,12.374,12.368,1803.0]
[1672756837552,1.87110411,12.374,12.369,5.0]
[1672756839029,0.07110411,12.374,12.37,1798.0]
[1672756839235,5.0,12.385,12.37,1798.0]
[1672756839756,5.0,12.394,12.37,1798.0]
[1672756840076,5.0,12.394,12.371,51.207]
[1672756840287,0.06858151,12.385,12.376,0.06279242]
[1672756840494,0.06858151,12.385,12.376,1798.06357217]
[1672756841539,0.06858151,12.385,12.377,46.207]
[1672756841753,0.06858151,12.385,12.378,1798.0]
[1672756842389,0.00858151,12.385,12.378,1798.0]
[1672756843438,1.8,12.384,12.379,5.0]
[1672756844914,1.8,12.384,12.378,1798.0]
[1672756845334,1.8,12.384,12.38,5.0]
[1672756846380,0.00858151,12.385,12.38,5.0]
[1672756847225,1.1,12.384,12.38,5.0]
[1672756848384,1.1,12.384,12.379,5.0]
[1672756849426,1.1,12.384,12.378,1798.0]
[1672756849645,6.1,12.384,12.376,0.06357217]
[1672756850060,5.0,12.384,12.376,0.06357217]
[1672756850791,0.00858151,12.385,12.376,0.06357217]
[1672756851007,0.00858151,12.385,12.376,5.06357217]
[1672756851326,1.6,12.384,12.376,5.06357217]
[1672756851529,1.6,12.384,12.376,0.06357217]
[1672756852787,1.6,12.384,12.376,5.06357217]
[1672756853008,1.6,12.384,12.376,0.06357217]
[1672756853214,1.6,12.384,12.376,1798.06357217]
[1672756853635,1.6,12.384,12.377,5.0]
[1672756854367,1.6,12.384,12.381,5.0]
[1672756854800,0.00858151,12.385,12.381,5.0]
[1672756855117,0.00858151,12.385,12.379,0.06365205]
[1672756856273,1.8,12.384,12.379,0.06365205]
[1672756857218,1.8,12.384,12.38,12.99756296]
[1672756857429,1.8,12.384,12.381,5.0]
[1672756858162,1.8,12.384,12.38,12.99756296]
[1672756859215,1.8,12.384,12.379,0.06365205]
[1672756859844,0.00858151,12.385,12.379,0.06365205]
[1672756860366,0.00858151,12.385,12.38,12.99756296]
[1672756860574,1.5,12.384,12.381,5.0]
[1672756861739,1.26204019,12.384,12.381,5.0]
[1672756862156,1.26204019,12.384,12.38,5.0]
[1672756863523,1.26204019,12.384,12.38,17.99756296]
[1672756863841,0.00858151,12.385,12.38,17.99756296]
[1672756864471,1.9,12.384,12.38,17.99756296]
[1672756864682,1.9,12.384,12.38,5.0]
[1672756865522,0.00858151,12.385,12.38,17.99756296]
[1672756865736,0.00858151,12.385,12.381,47.8207]
[1672756866463,0.00858151,12.385,12.382,1803.0]
[1672756866677,0.07101512,12.388,12.382,1803.0]
[1672756866887,0.06573424,12.389,12.382,1803.0]
[1672756867100,0.06756964,12.39,12.382,1849.1983]
[1672756867309,0.06449889,12.39,12.383,46.1983]
[1672756867735,0.06449889,12.39,12.383,51.1983]
[1672756867941,0.06449889,12.39,12.384,46.1983]
[1672756868568,0.06449889,12.39,12.384,51.1983]
[1672756868778,0.06449889,12.39,12.385,46.1983]
[1672756869095,0.06449889,12.39,12.385,51.1983]
[1672756869721,0.00449889,12.39,12.385,51.1983]
[1672756870139,0.00449889,12.39,12.386,5.0]
[1672756870566,0.00449889,12.39,12.386,50.2862]
[1672756871411,0.00449889,12.39,12.386,5.0]
[1672756871617,0.00449889,12.39,12.353,1798.0]
[1672756871937,1.8,12.39,12.354,60.71]
[1672756872140,5.0,12.389,12.355,1843.2862]
[1672756872358,5.0,12.389,12.356,105.9862]
[1672756872567,0.06594851,12.377,12.357,1798.0]
[1672756872777,0.06108115,12.371,12.363,0.06503001]
[1672756873094,5.0,12.389,12.364,1858.66]
[1672756873301,5.0,12.389,12.365,47.5828]
[1672756873511,5.0,12.389,12.366,1858.65]
[1672756873724,5.0,12.389,12.367,47.5828]
[1672756873929,5.0,12.389,12.368,1803.0]
[1672756874246,5.0,12.389,12.374,0.06669649]
[1672756874458,5.0,12.389,12.377,0.06159265]
[1672756875614,1.6,12.388,12.377,0.06159265]
[1672756876031,1.6,12.388,12.377,5.06159265]
[1672756876241,1.6,12.388,12.377,49.02149265]
[1672756876661,1.6,12.388,12.377,0.06159265]
[1672756878137,37.00243704,12.384,12.377,0.06159265]
[1672756878341,5.0,12.383,12.377,0.06159265]
[1672756878549,1.6,12.388,12.377,0.06159265]
[1672756878766,5.0,12.389,12.377,0.06159265]
[1672756879190,37.00243704,12.384,12.377,0.06159265]
[1672756879500,1.5,12.387,12.377,0.06159265]
[1672756880237,1.5,12.387,12.377,5.06159265]
[1672756880443,1.5,12.387,12.377,50.05359265]
[1672756881287,1.5,12.387,12.379,12.99756296]
[1672756881709,1.5,12.387,12.38,5.0]
[1672756882233,1.5,12.387,12.381,48.136]
[1672756882446,37.00243704,12.394,12.382,5.0]
[1672756882651,5.0,12.393,12.384,0.06192446]
[1672756883076,2.0,12.387,12.384,0.06192446]
[1672756883286,2.0,12.387,12.382,53.136]
[1672756883812,2.0,12.387,12.382,48.136]
[1672756884231,2.0,12.387,12.377,5.0]
[1672756884446,5.0,12.383,12.374,48.136]
[1672756884650,5.0,12.383,12.375,5.0]
[1672756885386,5.06058093,12.383,12.375,0.06907865]
[1672756886436,0.06058093,12.383,12.375,0.06907865]
[1672756886648,0.06058093,12.383,12.375,5.06907865]
[1672756886853,0.00058093,12.383,12.375,53.20477865]
[1672756887059,0.00058093,12.383,12.376,53.1357]
[1672756887273,0.00058093,12.383,12.377,53.1357]
[1672756887486,1.3,12.382,12.378,5.0]
[1672756887700,0.00058093,12.383,12.379,48.1357]
[1672756887905,5.0,12.403,12.38,51.6778]
[1672756888111,42.00243704,12.403,12.381,1803.0]
[1672756888432,5.0,12.403,12.382,5.0]
[1672756888640,5.0,12.403,12.383,1798.0]
[1672756888850,5.0,12.403,12.388,0.06769066]
[1672756889269,42.00243704,12.403,12.388,0.06769066]
[1672756889799,5.0,12.402,12.388,0.06769066]
[1672756891479,1.6,12.4,12.388,0.06769066]
[1672756893582,47.01,12.399,12.388,0.06769066]
[1672756893900,5.0,12.398,12.388,0.06769066]
[1672756894945,5.0,12.398,12.396,26.71158205]
[1672756895160,5.0,12.402,12.393,0.06444262]
[1672756895476,37.00243704,12.394,12.393,0.06293918]
[1672756895688,1.2,12.4,12.389,0.06079489]
[1672756897789,5.0,12.393,12.389,0.06079489]
[1672756898938,37.00243704,12.394,12.389,0.06079489]
[1672756899573,1.4,12.4,12.389,0.06079489]
[1672756900413,37.00243704,12.39,12.389,0.06079489]
[1672756900615,5.0,12.389,12.385,0.07068083]
[1672756900824,5.0,12.389,12.378,5.0]
[1672756900825,5.0,12.389,12.383,0.0655313]
[1672756901039,5.0,12.389,12.382,0.07028408]
[1672756901462,37.00243704,12.384,12.382,0.07028408]
[1672756901667,5.0,12.389,12.379,48.53298014]
[1672756902095,5.0,12.389,12.379,0.06428014]
[1672756902302,37.00243704,12.384,12.379,0.06428014]
[1672756902620,5.0,12.389,12.379,0.06428014]
[1672756902829,0.03888391,12.379,12.378,48.4687]
[1672756904403,0.06687162,12.383,12.379,5.0]
[1672756904617,0.00687162,12.383,12.379,5.0]
[1672756907348,5.0,12.393,12.379,5.0]
[1672756908508,5.0,12.398,12.379,5.0]
[1672756908509,5.0,12.398,12.382,0.06627772]
[1672756908821,5.0,12.398,12.386,0.0610531]
[1672756909555,1.8,12.393,12.386,0.0610531]
[1672756911551,37.00243704,12.387,12.386,0.0610531]
[1672756911771,5.0,12.392,12.382,0.06579485]
[1672756912085,5.0,12.392,12.383,0.06413542]
[1672756912294,5.0,12.392,12.383,0.06960669]
[1672756913967,1.1,12.387,12.383,0.06960669]
[1672756916289,37.00243704,12.385,12.383,0.06960669]
[1672756916500,5.0,12.384,12.38,0.06369974]
[1672756916914,5.0,12.392,12.38,0.06369974]
[1672756917126,5.0,12.392,12.38,45.97229974]
[1672756917435,5.0,12.394,12.381,45.9086]
[1672756917649,1.1,12.387,12.383,0.06113259]
[1672756918920,1.1,12.387,12.383,47.81593259]
[1672756919129,5.0,12.404,12.384,5.0]
[1672756919447,5.0,12.404,12.387,0.06885868]
[1672756919861,5.0,12.404,12.39,0.06225135]
[1672756921021,5.0,12.405,12.39,0.06225135]
[1672756921231,5.0,12.412,12.393,0.06378842]
[1672756921439,5.0,12.412,12.396,0.06230618]
[1672756921650,37.00243704,12.406,12.397,0.06663818]
[1672756921861,5.0,12.405,12.397,0.06920692]
[1672756922491,37.00243704,12.406,12.397,0.06920692]
[1672756922701,5.0,12.412,12.397,0.06920692]
[1672756923124,5.0,12.412,12.406,26.69446216]
[1672756923335,5.0,12.412,12.403,0.06589274]
[1672756923648,5.0,12.412,12.402,0.07012967]
[1672756923860,5.0,12.405,12.401,0.06394239]
[1672756924070,5.0,12.405,12.399,0.06939695]
[1672756924280,5.0,12.405,12.398,0.06516044]
[1672756924484,5.0,12.405,12.397,0.06796858]
[1672756924695,5.0,12.405,12.397,0.06320948]
[1672756925646,6.7,12.409,12.397,0.06320948]
[1672756926698,37.00243704,12.407,12.397,0.06320948]
[1672756927012,5.0,12.406,12.397,0.06320948]
[1672756928687,37.00243704,12.398,12.397,0.06320948]
[1672756928897,0.06,12.397,12.393,0.0636725]
[1672756929109,0.06,12.397,12.391,0.06260452]
[1672756929322,0.06,12.397,12.39,0.06031926]
[1672756929738,37.06243704,12.397,12.39,0.06031926]
[1672756930056,5.0,12.396,12.39,0.06031926]
[1672756931737,52.16,12.405,12.39,0.06031926]
[1672756932053,37.00243704,12.398,12.393,0.06907304]
[1672756932264,5.0,12.397,12.393,0.06907304]
[1672756933209,1.0,12.396,12.393,0.06907304]
[1672756933413,1.0,12.396,12.39,0.06054011]
[1672756933630,1.0,12.396,12.389,0.06261533]
[1672756933944,1.0,12.396,12.388,0.0675997]
[1672756934994,37.00243704,12.389,12.371,5.0]
[1672756935206,37.00243704,12.389,12.372,44.8883]
[1672756935415,5.0,12.388,12.373,5.0]
[1672756935625,5.0,12.388,12.374,44.8883]
[1672756935944,5.0,12.388,12.375,5.0]
[1672756936142,0.07046663,12.386,12.377,0.06813863]
[1672756936352,16.19,12.378,12.377,0.06813863]
[1672756936567,0.03164816,12.378,12.375,44.8883]
[1672756936779,5.07000836,12.382,12.376,5.0]
[1672756937304,0.07000836,12.382,12.376,5.0]
[1672756937518,5.0,12.387,12.376,5.0]
[1672756937718,16.03,12.379,12.376,5.0]
[1672756937933,16.19,12.379,12.376,5.0]
[1672756938138,4.87164816,12.387,12.376,5.0]
[1672756938348,16.08,12.379,12.376,5.0]
[1672756938556,16.08,12.379,12.374,5.0]
[1672756938770,16.04,12.378,12.373,0.0684072]
[1672756938981,16.04,12.378,12.371,0.07128043]
[1672756939195,1.49395774,12.378,12.371,0.07128043]
[1672756940032,4.87164816,12.387,12.372,5.0]
[1672756940244,16.08,12.378,12.375,0.06011388]
[1672756940454,16.19,12.378,12.377,0.06267591]
[1672756940777,16.08,12.386,12.381,0.07088176]
[1672756940985,1.2,12.387,12.383,0.0665467]
[1672756941192,69.81,12.405,12.384,5.07060218]
[1672756941515,69.81,12.405,12.386,0.06219162]
[1672756941721,16.06,12.393,12.389,0.06542203]
[1672756942135,16.03,12.39,12.389,0.06542203]
[1672756942341,16.03,12.39,12.384,5.0]
[1672756942342,16.03,12.39,12.385,0.07079402]
[1672756942555,16.08,12.388,12.385,0.07079402]
[1672756942769,16.08,12.388,12.382,5.06142784]
[1672756944032,16.19,12.385,12.382,0.06142784]
[1672756944243,16.19,12.385,12.379,0.06154577]
[1672756944663,16.19,12.382,12.379,0.06154577]
[1672756944979,16.19,12.382,12.378,5.0]
[1672756945187,16.19,12.382,12.376,5.07092448]
[1672756945499,16.19,12.382,12.376,0.07092448]
[1672756945709,16.19,12.377,12.376,0.07092448]
[1672756945924,16.19,12.377,12.373,5.0]
[1672756946241,16.19,12.377,12.372,5.06740056]
[1672756949393,16.19,12.377,12.372,0.06740056]
[1672756950128,16.04,12.374,12.372,0.06740056]
[1672756950337,16.04,12.374,12.369,0.06773503]
[1672756950754,16.08,12.372,12.369,0.06773503]
[1672756950966,1.52925427,12.372,12.366,5.06190848]
[1672756951809,1.52925427,12.372,12.366,51.75860848]
[1672756952542,5.0,12.38,12.37,0.06565237]
[1672756952752,16.06,12.372,12.37,0.06565237]
[1672756952962,16.19,12.372,12.371,5.06577186]
[1672756953172,16.19,12.372,12.371,5.0]
[1672756953382,1.2,12.377,12.371,5.0]
[1672756953805,16.19,12.373,12.371,5.0]
[1672756954961,16.19,12.373,12.37,0.07143897]
[1672756955170,16.19,12.373,12.367,5.06403465]
[1672756956854,1.9,12.371,12.367,5.06403465]
[1672756957066,16.06,12.37,12.367,0.06403465]
[1672756957272,16.06,12.37,12.364,5.06761034]
[1672756957693,16.06,12.37,12.364,0.06761034]
[1672756959168,17.98,12.371,12.364,0.06761034]
[1672756959366,16.19,12.369,12.364,0.06761034]
[1672756959582,16.19,12.367,12.364,0.06761034]
[1672756959796,16.06,12.365,12.361,0.06596894]
[1672756960007,16.04,12.362,12.359,0.06757402]
[1672756960315,1.4774823,12.362,12.356,0.06125571]
[1672756960531,65.96,12.372,12.361,12.99756296]
[1672756960740,65.96,12.372,12.362,5.06138608]
[1672756960950,16.19,12.363,12.362,5.06138608]
[1672756961160,16.19,12.363,12.362,5.0]
[1672756961681,5.0,12.371,12.358,0.06391455]
[1672756962003,16.19,12.362,12.359,5.0]
[1672756962210,5.0,12.371,12.359,5.0]
[1672756962527,16.19,12.367,12.361,0.06687219]
[1672756962943,17.27,12.372,12.361,5.06687219]
[1672756963158,1.61126263,12.362,12.361,5.06687219]
[1672756963362,17.27,12.372,12.361,5.0]
[1672756963570,16.08,12.363,12.362,1.67084075]
[1672756963781,16.08,12.363,12.361,5.0]
[1672756964838,16.08,12.363,12.36,1798.0]
[1672756965785,80.78,12.361,12.36,1798.0]
[1672756965995,80.78,12.361,12.356,0.06793536]
[1672756966201,80.78,12.361,12.342,1814.1]
[1672756966202,16.04,12.357,12.354,0.06566888]
[1672756966416,16.19,12.355,12.351,0.06975968]
[1672756966626,16.19,12.352,12.349,0.0618789]
[1672756966839,16.11,12.35,12.346,48.15133583]
[1672756967042,5.0,12.354,12.346,48.15133583]
[1672756967043,16.19,12.347,12.346,0.06413583]
[1672756967364,5.0,12.36,12.347,5.0]
[1672756967678,16.08,12.351,12.349,0.06522024]
[1672756967885,64.5,12.361,12.35,5.0]
[1672756968096,16.19,12.352,12.351,0.06505184]
[1672756968415,5.0,12.36,12.352,0.06599555]
[1672756968729,16.06,12.353,12.352,0.06308221]
[1672756968937,69.49763471,12.361,12.35,5.0]
[1672756969149,16.19,12.353,12.351,0.06116262]
[1672756969359,16.19,12.352,12.35,5.0]
[1672756969568,16.11,12.352,12.35,5.0]
[1672756969775,5.0,12.36,12.35,5.0]
[1672756969984,16.03,12.352,12.351,0.0708556]
[1672756970195,16.03,12.352,12.35,5.0]
[1672756970721,16.11,12.351,12.348,5.0]
[1672756970927,16.11,12.351,12.347,5.06759453]
[1672756970928,16.19,12.349,12.347,5.0]
[1672756971670,16.19,12.349,12.345,970.6205595]
[1672756972924,16.19,12.349,12.346,5.0]
[1672756973135,16.03,12.347,12.346,5.0]
[1672756973555,16.03,12.347,12.345,970.6205595]
[1672756973770,16.03,12.347,12.342,1798.06567067]
[1672756974082,16.03,12.343,12.342,1798.06567067]
[1672756974294,16.03,12.343,12.342,1798.0]
[1672756975125,5.0,12.359,12.342,1798.0]
[1672756975126,16.19,12.347,12.343,5.0]
[1672756975335,64.78,12.361,12.343,5.0]
[1672756975546,16.19,12.348,12.343,5.0]
[1672756976600,16.04,12.346,12.343,5.0]
[1672756976813,16.03,12.349,12.343,5.0]
[1672756977021,5.0,12.36,12.343,5.0]
[1672756977233,16.08,12.349,12.347,0.06263373]
[1672756977448,16.08,12.349,12.344,0.06387502]
[1672756978489,16.19,12.346,12.344,0.06387502]
[1672756978703,16.19,12.346,12.343,5.0]
[1672756978914,16.19,12.346,12.342,1798.0]
[1672756979126,16.19,12.346,12.343,5.0]
[1672756980078,16.19,12.346,12.344,1798.0]
[1672756980287,16.19,12.346,12.345,5.0]
[1672756980604,16.19,12.346,12.345,1803.0]
[1672756981437,16.19,12.346,12.345,1798.0]
[1672756982076,5.0,12.345,12.331,5.0]
[1672756982280,16.11,12.342,12.331,5.0]
[1672756982906,0.0684486,12.341,12.332,0.0645477]
[1672756983122,0.06158993,12.341,12.332,0.068445]
[1672756983332,0.06158993,12.341,12.34,12.99756296]
[1672756983541,16.03,12.344,12.34,12.99756296]
[1672756984172,16.03,12.344,12.336,0.06492059]
[1672756984388,16.19,12.34,12.336,0.06492059]
[1672756984594,16.04,12.338,12.336,0.06492059]
[1672756984803,16.04,12.338,12.333,0.06147204]
[1672756985115,16.03,12.34,12.333,0.06147204]
[1672756985327,16.03,12.34,12.334,50.0]
[1672756985645,16.03,12.34,12.335,5.0]
[1672756987430,0.06883351,12.341,12.335,5.0]
[1672756988273,5.0,12.358,12.335,5.0]
[1672756988481,16.19,12.346,12.335,5.0]
[1672756989005,5.0,12.358,12.335,5.0]
[1672756989326,16.08,12.344,12.341,0.06223709]
[1672756989538,16.19,12.342,12.338,0.06938339]
[1672756989748,16.19,12.342,12.336,0.06334098]
[1672756990163,16.19,12.338,12.336,0.06334098]
[1672756990381,16.19,12.338,12.333,5.06916585]
[1672756990590,5.0,12.349,12.333,5.06916585]
[1672756990801,16.19,12.343,12.337,0.06984525]
[1672756992802,16.19,12.346,12.337,0.06984525]
[1672756995323,16.19,12.346,12.345,12.99756296]
[1672756995841,16.19,12.346,12.345,1810.99756296]
[1672756996156,5.0,12.361,12.347,0.06982328]
[1672756996371,16.19,12.351,12.35,0.06823099]
[1672756996581,16.19,12.351,12.346,16.25569376]
[1672756996897,5.0,12.36,12.348,5.0]
[1672756997213,16.11,12.353,12.35,0.06381439]
[1672756997420,5.0,12.368,12.352,12.99756296]
[1672756997737,16.11,12.362,12.356,0.07090266]
[1672756997948,16.11,12.362,12.355,0.0611737]
[1672756998153,16.11,12.362,12.356,1798.0]
[1672756998363,16.11,12.362,12.357,5.0]
[1672756999525,16.08,12.362,12.36,0.0693484]
[1672756999735,16.08,12.362,12.357,5.06314322]
[1672757000682,5.0,12.376,12.361,12.99756296]
[1672757000995,16.19,12.369,12.364,0.06616065]
[1672757001198,16.19,12.369,12.362,5.06718365]
[1672757001413,16.19,12.369,12.363,1798.0]
[1672757001630,16.19,12.369,12.364,5.0]
[1672757001943,16.19,12.369,12.366,5.0]
[1672757003412,16.03,12.367,12.35,16.06]
[1672757003627,16.06,12.362,12.351,5.0]
[1672757004048,16.19,12.363,12.351,5.0]
[1672757004469,0.06083192,12.361,12.353,0.06449162]
[1672757004677,16.19,12.365,12.353,0.06056056]
[1672757006565,16.19,12.368,12.355,16.19]
[1672757006775,16.19,12.368,12.357,0.06408411]
[1672757008456,16.08,12.372,12.358,16.04]
[1672757008668,16.08,12.372,12.361,0.06024607]
[1672757008982,16.06,12.376,12.361,16.25024607]
[1672757009184,16.06,12.376,12.364,0.06969686]
[1672757009395,16.19,12.379,12.365,16.06]
[1672757009718,16.19,12.379,12.368,0.06880993]
[1672757010661,16.03,12.376,12.368,0.06880993]
[1672757015291,5.0,12.381,12.368,0.06880993]
[1672757015292,16.19,12.371,12.368,0.06880993]
[1672757015505,16.03,12.369,12.365,0.06019237]
[1672757015712,16.03,12.369,12.363,0.06725599]
[1672757015920,16.03,12.369,12.362,0.06574499]
[1672757016650,16.19,12.366,12.362,0.06574499]
[1672757016868,16.19,12.366,12.36,0.06078663]
[1672757017604,16.08,12.362,12.36,0.06078663]
[1672757017817,16.08,12.362,12.357,0.07082974]
[1672757018128,15.9920057,12.362,12.357,0.07082974]
[1672757025382,16.11,12.36,12.357,0.07082974]
[1672757025593,16.11,12.36,12.354,5.06776667]
[1672757026219,16.19,12.362,12.354,5.06776667]
[1672757027376,16.08,12.36,12.354,5.06776667]
[1672757027589,16.08,12.36,12.354,5.0]
[1672757027895,16.08,12.36,12.353,0.06049508]
[1672757028113,16.19,12.357,12.353,0.06049508]
[1672757028322,16.19,12.357,12.351,5.0606568]
[1672757028848,16.19,12.357,12.351,0.0606568]
[1672757032106,16.04694545,12.357,12.351,0.0606568]
[1672757032737,16.18,12.352,12.351,0.0606568]
[1672757032945,16.18,12.352,12.347,0.06601785]
[1672757033155,16.19,12.348,12.345,5.06227432]
[1672757033365,16.19,12.348,12.345,5.0]
[1672757034303,16.19,12.348,12.342,5.06535718]
[1672757034514,16.08,12.344,12.342,0.06535718]
[1672757034838,16.08,12.344,12.339,0.06207976]
[1672757035046,16.06,12.34,12.337,0.06704984]
[1672757035361,16.03,12.338,12.334,5.06569756]
[1672757035783,16.03,12.338,12.334,0.06569756]
[1672757037150,16.19,12.335,12.327,5.0]
[1672757038201,16.19,12.331,12.327,5.06849695]
[1672757038410,16.19,12.331,12.327,0.06849695]
[1672757040723,16.19,12.334,12.327,0.06849695]
[1672757041144,0.06538644,12.335,12.327,0.06849695]
[1672757043347,16.19,12.342,12.328,1814.19]
[1672757043563,16.11,12.345,12.331,16.06]
[1672757043763,16.11,12.345,12.332,48.5969]
[1672757043978,16.03,12.348,12.334,16.19]
[1672757044507,16.03,12.348,12.337,0.06475446]
[1672757045033,16.03,12.348,12.347,12.99756296]
[1672757045454,16.08,12.35,12.343,0.06577347]
[1672757046813,16.18,12.348,12.343,0.06577347]
[1672757047029,12.11,12.351,12.343,0.06577347]
[1672757047236,5.0,12.35,12.343,0.06577347]
[1672757047446,5.0,12.35,12.349,12.99756296]
[1672757047658,12.11,12.351,12.349,12.99756296]
[1672757047870,12.11,12.351,12.346,0.06124729]
[1672757048071,12.18,12.348,12.344,0.06054624]
[1672757048286,12.18,12.348,12.342,0.0671071]
[1672757048496,12.18,12.348,12.341,0.06238236]
[1672757049022,12.18,12.351,12.341,0.06238236]
[1672757049864,12.13,12.347,12.341,0.06238236]
[1672757051120,12.18,12.344,12.341,0.06238236]
[1672757051330,5.0,12.343,12.333,5.0]
[1672757052176,0.06246986,12.342,12.334,0.0680684]
[1672757052704,12.13,12.337,12.32,47.0051]
[1672757053017,12.18,12.334,12.33,5.0]
[1672757053962,12.18,12.334,12.328,0.0614729]
[1672757056901,12.18,12.331,12.328,0.0614729]
[1672757057116,5.0,12.33,12.325,0.07056004]
[1672757057327,12.18,12.326,12.316,5.0]
[1672757057642,12.18,12.322,12.316,5.0]
[1672757058057,5.0,12.327,12.316,5.0]
[1672757058058,12.1,12.318,12.316,5.0]
[1672757058264,12.1,12.318,12.309,44.2564]
[1672757058477,12.1,12.318,12.311,0.06056852]
[1672757059113,12.1,12.318,12.3,5.0]
[1672757059114,0.09726828,12.311,12.3,5.0]
[1672757059525,5.0,12.327,12.307,12.18]
[1672757059737,12.18,12.329,12.311,0.09]
[1672757060163,0.06802323,12.324,12.316,0.06740325]
[1672757060369,0.07083612,12.324,12.316,0.06740325]
[1672757060789,5.0,12.339,12.317,12.13]
[1672757061000,17.18,12.339,12.317,17.13]
[1672757061211,53.72,12.339,12.334,20.85151689]
[1672757061429,5.0,12.335,12.318,5.0]
[1672757061636,5.0,12.328,12.318,5.0]
[1672757061849,0.0621316,12.327,12.319,0.07063129]
[1672757062585,12.13,12.323,12.318,27.0952539]
[1672757062789,12.13,12.323,12.312,5.0]
[1672757063213,5.0,12.322,12.312,5.0]
[1672757063639,0.0683257,12.321,12.313,0.06010479]
[1672757063845,12.13,12.319,12.313,0.06010479]
[1672757064585,12.18,12.316,12.313,0.06010479]
[1672757064794,12.18,12.316,12.312,5.0]
[1672757065005,12.18,12.316,12.311,0.09]
[1672757065950,12.16751171,12.318,12.31,0.06839713]
[1672757068778,0.06751171,12.318,12.31,0.06839713]
[1672757070469,0.06751171,12.318,12.31,12.24839713]
[1672757070781,53.79,12.339,12.31,12.24839713]